fUST/lending_fUST_20250929
["ID","MTS","AMOUNT","RATE_DAILY","PERIOD"]
[388320632,1759088315356,746.11045015,0.00026549,2]
[388320633,1759088315392,746.11045015,0.00026549,2]
[388320634,1759088315722,746.11045015,0.00026549,2]
[388320635,1759088315909,746.11045015,0.00026549,2]
[388320636,1759088318081,500.0,0.00026549,2]
[388320637,1759088318110,221.74667835,0.00026549,2]
[388320638,1759088318138,500.0,0.00026549,2]
[388320639,1759088318166,500.0,0.00026549,2]
[388320640,1759088318195,611.8553103,0.00026549,2]
[388320641,1759088318223,500.0,0.00026549,2]
[388320642,1759088318255,551.47236554,0.00026549,2]
[388320643,1759088318282,500.0,0.00026549,2]
[388320644,1759088318310,405.16016028,0.00026549,2]
[388320645,1759088318334,110.4751484,0.00026549,2]
[388320646,1759088318363,500.0,0.00026549,2]
[388320647,1759088318389,500.0,0.00026549,2]
[388320648,1759088318417,500.0,0.00026549,2]
[388320649,1759088318443,500.0,0.00026549,2]
[388320650,1759088318469,614.42235715,0.00026549,2]
[388320651,1759088318501,500.0,0.00026549,2]
[388320652,1759088318529,500.0,0.00026549,2]
[388320653,1759088318557,500.0,0.00026549,2]
[388320654,1759088318585,500.0,0.00026549,2]
[388320655,1759088318611,500.0,0.00026549,2]
[388320656,1759088318637,500.0,0.00026549,2]
[388320657,1759088318665,500.0,0.00026549,2]
[388320658,1759088318691,192.28503798,0.00026549,2]
[388320659,1759088318718,500.0,0.00026549,2]
[388320660,1759088318752,500.0,0.00026549,2]
[388320661,1759088318778,500.0,0.00026549,2]
[388320662,1759088318805,500.0,0.00026549,2]
[388320663,1759088318832,500.0,0.00026549,2]
[388320664,1759088318860,500.0,0.00026549,2]
[388320665,1759088319128,500.0,0.00026549,2]
[388320666,1759088319155,82.82745647,0.00026549,2]
[388320667,1759088319180,417.17254353,0.00026549,2]
[388320668,1759088319209,500.0,0.00026549,2]
[388320669,1759088319244,500.0,0.00026549,2]
[388320670,1759088319272,508.75727415,0.00026549,2]
[388320671,1759088319301,500.0,0.00026549,2]
[388320672,1759088319333,500.0,0.00026549,2]
[388320673,1759088319360,500.0,0.00026549,2]
[388320674,1759088319388,500.0,0.00026549,2]
[388320675,1759088319416,500.0,0.00026549,2]
[388320676,1759088319443,500.0,0.00026549,2]
[388320677,1759088319470,500.0,0.00026549,2]
[388320678,1759088319497,500.0,0.00026549,2]
[388320679,1759088319532,500.0,0.00026549,2]
[388320680,1759088319559,500.0,0.00026549,2]
[388320681,1759088319585,500.0,0.00026549,2]
[388320682,1759088319614,500.0,0.00026549,2]
[388320683,1759088319640,500.0,0.00026549,2]
[388320684,1759088319669,500.0,0.00026549,2]
[388320685,1759088319698,500.0,0.00026549,2]
[388320686,1759088319737,500.0,0.00026549,2]
[388320687,1759088319765,74.08018232,0.00026549,2]
[388320688,1759088319790,425.91981768,0.00026549,2]
[388320689,1759088319821,500.0,0.00026549,2]
[388320690,1759088319847,500.0,0.00026549,2]
[388320691,1759088319874,500.0,0.00026549,2]
[388320692,1759088319900,500.0,0.00026549,2]
[388320693,1759088319924,231.2413579,0.00026549,2]
[388320694,1759088319949,500.0,0.00026549,2]
[388320695,1759088319978,500.0,0.00026549,2]
[388320696,1759088320028,500.0,0.00026549,2]
[388320697,1759088320057,500.0,0.00026549,2]
[388320698,1759088320085,500.0,0.00026549,2]
[388320699,1759088320111,500.0,0.00026549,2]
[388320700,1759088320141,500.0,0.00026549,2]
[388320701,1759088320166,500.0,0.00026549,2]
[388320702,1759088320195,500.0,0.00026549,2]
[388320703,1759088320224,500.0,0.00026549,2]
[388320704,1759088320252,500.0,0.00026549,2]
[388320705,1759088320277,500.0,0.00026549,2]
[388320706,1759088320305,500.0,0.00026549,2]
[388320707,1759088320338,500.0,0.00026549,2]
[388320708,1759088320364,342.84882442,0.00026549,2]
[388320709,1759088320386,157.15117558,0.00026549,2]
[388320710,1759088320413,500.0,0.00026549,2]
[388320711,1759088320443,500.0,0.00026549,2]
[388320712,1759088320472,500.0,0.00026549,2]
[388320713,1759088320505,500.0,0.00026549,2]
[388320714,1759088320534,500.0,0.00026549,2]
[388320715,1759088320561,500.0,0.00026549,2]
[388320716,1759088320594,500.0,0.00026549,2]
[388320717,1759088320621,500.0,0.00026549,2]
[388320718,1759088320651,500.0,0.00026549,2]
[388320719,1759088320677,500.0,0.00026549,2]
[388320720,1759088320702,500.0,0.00026549,2]
[388320721,1759088320749,500.0,0.00026549,2]
[388320722,1759088320775,500.0,0.00026549,2]
[388320723,1759088320813,500.0,0.00026549,2]
[388320724,1759088320838,500.0,0.00026549,2]
[388320725,1759088320883,500.0,0.00026549,2]
[388320726,1759088320916,617.6752977,0.00026549,2]
[388320727,1759088320949,500.0,0.00026549,2]
[388320728,1759088320974,500.0,0.00026549,2]
[388320729,1759088321009,225.18352672,0.00026549,2]
[388320730,1759088321031,274.81647328,0.00026549,2]
[388320731,1759088334684,5000.0,0.00025205,2]
[388320732,1759088343371,5000.0,0.00025205,2]
[388320733,1759088359830,0.01,0.00025205,2]
[388320734,1759088359855,4999.99,0.00025205,2]
[388320735,1759088383044,5000.0,0.00025205,2]
[388320736,1759088390957,0.02,0.00025205,2]
[388320737,1759088390979,4870.91849525,0.00025205,2]
[388320738,1759088406407,5000.0,0.00025205,2]
[388320739,1759088428949,129.09150475,0.00025205,2]
[388320740,1759088428975,4870.90849525,0.00025205,2]
[388320741,1759088451964,5000.0,0.00025205,2]
[388320744,1759088672348,5000.0,0.00025205,2]
[388320745,1759088688220,4240.0,0.00025205,2]
[388320746,1759088696797,760.01,0.00025205,2]
[388320747,1759088696822,4239.99,0.00025205,2]
[388320748,1759088706707,160.0,0.00025205,2]
[388320749,1759088720083,5000.0,0.00025205,2]
[388320750,1759088743673,600.02,0.00025205,2]
[388320751,1759088743698,4399.98,0.00025205,2]
[388320753,1759088767109,5000.0,0.00025205,2]
[388320754,1759088789864,600.03,0.00025205,2]
[388320755,1759088789896,4399.97,0.00025205,2]
[388320756,1759088812957,5000.0,0.00025205,2]
[388320757,1759088837726,600.04,0.00025205,2]
[388320758,1759088837750,4399.96,0.00025205,2]
[388320759,1759088846167,5000.0,0.00025205,2]
[388320760,1759088862107,600.05,0.00025205,2]
[388320761,1759088862132,4399.95,0.00025205,2]
[388320762,1759088870003,1401.08355398,0.00025205,2]
[388320763,1759088885761,4198.97644602,0.00025205,2]
[388320764,1759088885784,801.02355398,0.00025205,2]
[388320765,1759088908495,5000.0,0.00025205,2]
[388320766,1759088933499,4198.98644602,0.00025205,2]
[388320767,1759088933521,801.01355398,0.00025205,2]
[388320768,1759088956126,3049.20722104,0.00025205,2]
[388320782,1759089032692,-1131.5330807,0.00025424,2]
[388320784,1759089032702,-4075.4989519,0.00025447,2]
[388320786,1759089032712,-1611.7083561,0.00025631,2]
[388320788,1759089032721,-182.0,0.00026027,14]
[388320789,1759089032730,-325.91596771,0.00026448,2]
[388320790,1759089032738,-350.73,0.00026525,10]
[388320791,1759089032747,-292.27,0.00026525,10]
[388320792,1759089032756,-260.67251826,0.00026531,2]
[388320793,1759089032766,-541.0,0.00026532,2]
[388320794,1759089032775,-300.0,0.00026533,2]
[388320796,1759089032784,-300.0,0.00026533,2]
[388320798,1759089032794,-300.0,0.00026533,2]
[388320800,1759089032807,-300.0,0.00026533,2]
[388320802,1759089032816,-300.0,0.00026533,2]
[388320804,1759089032826,-218.94471353,0.00026533,2]
[388320806,1759089032835,-619.27167363,0.00026533,2]
[388320808,1759089032844,-544.45745147,0.00026533,2]
[388320810,1759089032853,-619.27167363,0.00026533,2]
[388320812,1759089032863,-619.27167363,0.00026533,2]
[388320814,1759089032872,-619.27167363,0.00026533,2]
[388320816,1759089032882,-619.27167363,0.00026533,2]
[388320818,1759089032892,-619.27167363,0.00026533,2]
[388320821,1759089032908,-619.27167363,0.00026533,2]
[388320823,1759089032922,-619.27167363,0.00026533,2]
[388320825,1759089032931,-619.27167363,0.00026533,2]
[388320827,1759089032941,-619.27167363,0.00026533,2]
[388320830,1759089032952,-619.27167363,0.00026533,2]
[388320832,1759089032962,-619.27167363,0.00026533,2]
[388320834,1759089032972,-619.27167363,0.00026533,2]
[388320836,1759089032982,-619.27167363,0.00026533,2]
[388320838,1759089032991,-6130.18269414,0.00026534,2]
[388320841,1759089033016,-619.27167363,0.00026533,2]
[388320843,1759089033026,-619.27167363,0.00026533,2]
[388320845,1759089033035,-23969.11316408,0.00026534,2]
[388320848,1759089033047,-681.01285871,0.00026534,2]
[388320922,1759089038385,-243.56,0.00026525,10]
[388320923,1759089038395,-500.0,0.00026533,2]
[388320924,1759089038405,-500.0,0.00026533,2]
[388320925,1759089038414,-179.3802619,0.00026533,2]
[388320926,1759089038423,-500.0,0.00026533,2]
[388320927,1759089038433,-500.0,0.00026533,2]
[388320928,1759089038443,-500.0,0.00026533,2]
[388320929,1759089038453,-500.0,0.00026533,2]
[388320930,1759089038463,-500.0,0.00026533,2]
[388320931,1759089038472,-500.0,0.00026533,2]
[388320932,1759089038482,-500.0,0.00026533,2]
[388320933,1759089038491,-500.0,0.00026533,2]
[388320934,1759089038501,-500.0,0.00026533,2]
[388320935,1759089038510,-388.6458134,0.00026533,2]
[388320936,1759089038520,-500.0,0.00026533,2]
[388320938,1759089038529,-500.0,0.00026533,2]
[388320939,1759089038539,-500.0,0.00026533,2]
[388320940,1759089038548,-500.0,0.00026533,2]
[388320942,1759089038557,-500.0,0.00026533,2]
[388320943,1759089038567,-500.0,0.00026533,2]
[388320944,1759089038576,-500.0,0.00026533,2]
[388320945,1759089038585,-500.0,0.00026533,2]
[388320946,1759089038595,-500.0,0.00026533,2]
[388320947,1759089038604,-500.0,0.00026533,2]
[388320948,1759089038614,-500.0,0.00026533,2]
[388320949,1759089038624,-402.98012084,0.00026533,2]
[388320950,1759089038633,-500.0,0.00026533,2]
[388320951,1759089038643,-500.0,0.00026533,2]
[388320952,1759089038652,-500.0,0.00026533,2]
[388320953,1759089038662,-500.0,0.00026533,2]
[388320954,1759089038671,-500.0,0.00026533,2]
[388320955,1759089038680,-437.51098764,0.00026533,2]
[388320956,1759089038690,-485.65908863,0.00026533,2]
[388320957,1759089038700,-500.0,0.00026533,2]
[388320958,1759089038710,-500.0,0.00026533,2]
[388320959,1759089038720,-500.0,0.00026533,2]
[388320960,1759089038729,-500.0,0.00026533,2]
[388320961,1759089038739,-500.0,0.00026533,2]
[388320962,1759089038748,-500.0,0.00026533,2]
[388320963,1759089038757,-500.0,0.00026533,2]
[388320964,1759089038766,-500.0,0.00026533,2]
[388320965,1759089038776,-500.0,0.00026533,2]
[388320966,1759089038785,-500.0,0.00026533,2]
[388320967,1759089038795,-500.0,0.00026533,2]
[388320968,1759089038804,-500.0,0.00026533,2]
[388320969,1759089038814,-310.88276386,0.00026533,2]
[388320970,1759089038823,-500.0,0.00026533,2]
[388320971,1759089038832,-500.0,0.00026533,2]
[388320972,1759089038841,-500.0,0.00026533,2]
[388320973,1759089038851,-500.0,0.00026533,2]
[388320974,1759089038860,-500.0,0.00026533,2]
[388320975,1759089038870,-500.0,0.00026533,2]
[388320976,1759089038880,-500.0,0.00026533,2]
[388320977,1759089038890,-500.0,0.00026533,2]
[388320978,1759089038899,-500.0,0.00026533,2]
[388320979,1759089038909,-619.27167363,0.00026533,2]
[388320980,1759089038919,-619.27167363,0.00026533,2]
[388320981,1759089038929,-619.27167363,0.00026533,2]
[388320982,1759089038938,-619.27167363,0.00026533,2]
[388320983,1759089038948,-619.27167363,0.00026533,2]
[388320984,1759089038960,-619.27167363,0.00026533,2]
[388320985,1759089038970,-619.27167363,0.00026533,2]
[388320986,1759089038980,-619.27167363,0.00026533,2]
[388320987,1759089038990,-19219.69128307,0.00026534,2]
[388320988,1759089038999,-689.82979508,0.00026535,2]
[388320989,1759089039010,-1200.0,0.00026535,2]
[388320990,1759089039020,-4826.1527069,0.00026535,2]
[388320991,1759089039052,-94.19094511,0.00026535,2]
[388320992,1759089039063,-16254.29838346,0.00026535,2]
[388320993,1759089039074,-4342.956325,0.00026535,2]
[388320997,1759089040485,-242.74,0.00026534,2]
[388320998,1759089040496,-1457.26,0.00026535,2]
[388321002,1759089041601,-0.03583879,0.00026535,2]
[388321003,1759089041612,-2885.88391444,0.00026535,2]
[388321004,1759089041622,-242.74,0.00026808,2]
[388321005,1759089041632,-242.76901733,0.00027082,2]
[388321006,1759089041641,-171.83900733,0.00028,7]
[388321007,1759089041651,-180.92182294,0.00028,10]
[388321008,1759089041675,-8.4339691,0.00028,10]
[388321009,1759089041684,-1587.3660309,0.00028049,2]
[388321010,1759089041695,-4918.67150097,0.00028049,2]
[388321011,1759089041704,-266.54,0.00028692,3]
[388321012,1759089041714,-799.66,0.00028692,3]
[388321013,1759089041723,-354.0,0.00028699,2]
[388321014,1759089041732,-420.0,0.00028699,2]
[388321015,1759089041741,-420.0,0.00028699,2]
[388321016,1759089041750,-420.0,0.00028699,2]
[388321017,1759089041759,-4000.0,0.0002887,7]
[388321018,1759089041768,-233.82138094,0.00029,10]
[388321019,1759089041777,-482.11086438,0.00029403,2]
[388321020,1759089041787,-764.72248228,0.00029838,2]
[388321021,1759089041798,-235.27751772,0.00029838,2]
[388321022,1759089041807,-600.40009156,0.00029838,2]
[388321023,1759089041834,-357.46,0.00029838,2]
[388321064,1759089043625,-42.13990844,0.00029838,2]
[388321065,1759089043635,-1000.0,0.00029838,2]
[388321066,1759089043644,-1000.0,0.00029838,2]
[388321067,1759089043653,-1000.0,0.00029838,2]
[388321068,1759089043662,-533.08,0.00030062,3]
[388321069,1759089043671,-151.0,0.00030255,2]
[388321070,1759089043681,-160.0,0.0003045,2]
[388321071,1759089043690,-199.0,0.00030684,14]
[388321072,1759089043699,-500.0,0.0003077,7]
[388321073,1759089043708,-1000.0,0.00030774,2]
[388321074,1759089043716,-151.0,0.00030803,2]
[388321075,1759089043725,-1000.0,0.00030978,2]
[388321076,1759089043735,-170.50920855,0.00030978,2]
[388321077,1759089043744,-260.0,0.00030998,2]
[388321079,1759089043753,-587.0,0.00031042,2]
[388321080,1759089043762,-320.0,0.00031042,2]
[388321081,1759089043771,-199.0,0.00031232,15]
[388321082,1759089043781,-151.0,0.00031351,2]
[388321083,1759089043790,-1012.38975606,0.00031537,2]
[388321084,1759089043799,-360.0,0.00031546,2]
[388321085,1759089043808,-199.0,0.0003178,16]
[388321086,1759089043817,-151.0,0.00031899,2]
[388321087,1759089043826,-460.0,0.00032094,2]
[388321088,1759089043836,-199.0,0.00032328,17]
[388321089,1759089043845,-151.0,0.00032447,2]
[388321090,1759089043854,-320.88112695,0.00032642,2]
[388321091,1759089043866,-239.11887305,0.00032642,2]
[388321092,1759089043875,-255.90139001,0.00032873,2]
[388321093,1759089043885,-199.0,0.00032876,18]
[388321094,1759089043894,-500.0,0.00032876,120]
[388321095,1759089043903,-1087.820812,0.00032877,2]
[388321096,1759089043913,-151.0,0.00032965,7]
[388321097,1759089043922,-151.0,0.00032965,7]
[388321098,1759089043931,-151.0,0.00032965,7]
[388321099,1759089043940,-151.0,0.00032965,7]
[388321100,1759089043950,-163.94982091,0.00032965,7]
[388321101,1759089043959,-151.0,0.00032965,7]
[388321102,1759089043969,-191.58525315,0.00032965,7]
[388321103,1759089043978,-166.0,0.00032965,7]
[388321104,1759089043987,-151.0,0.00032995,2]
[388321105,1759089043997,-813.81547437,0.00033,60]
[388321106,1759089044006,-500.0,0.00033013,120]
[388321107,1759089044015,-28289.98336548,0.000331,2]
[388321108,1759089044027,-1570.79474822,0.000331,2]
[388321109,1759089044036,-151.0,0.00033119,7]
[388321110,1759089044046,-151.0,0.00033119,7]
[388321111,1759089044055,-151.0,0.00033119,7]
[388321112,1759089044065,-151.0,0.00033119,7]
[388321113,1759089044074,-162.0,0.00033119,7]
[388321114,1759089044084,-163.04405493,0.00033119,7]
[388321115,1759089044093,-162.0,0.00033119,7]
[388321116,1759089044103,-162.0,0.00033119,7]
[388321117,1759089044112,-151.0,0.00033119,7]
[388321118,1759089044121,-151.0,0.00033119,7]
[388321119,1759089044130,-151.0,0.00033119,7]
[388321120,1759089044139,-151.0,0.00033119,7]
[388321121,1759089044148,-151.0,0.00033119,7]
[388321122,1759089044158,-151.0,0.00033119,7]
[388321123,1759089044167,-151.0,0.00033119,7]
[388321124,1759089044175,-151.0,0.00033119,7]
[388321125,1759089044185,-151.0,0.00033119,7]
[388321126,1759089044194,-151.0,0.00033119,7]
[388321127,1759089044202,-151.0,0.00033119,7]
[388321128,1759089044212,-151.0,0.00033119,7]
[388321129,1759089044221,-151.0,0.00033119,7]
[388321130,1759089044230,-151.0,0.00033119,7]
[388321131,1759089044239,-151.0,0.00033119,7]
[388321132,1759089044249,-151.0,0.00033119,7]
[388321133,1759089044258,-151.0,0.00033119,7]
[388321134,1759089044267,-151.0,0.00033119,7]
[388321135,1759089044276,-151.0,0.00033119,7]
[388321136,1759089044286,-151.0,0.00033119,7]
[388321137,1759089044295,-151.0,0.00033119,7]
[388321138,1759089044304,-151.0,0.00033119,7]
[388321139,1759089044314,-151.0,0.00033119,7]
[388321140,1759089044323,-151.0,0.00033119,7]
[388321141,1759089044332,-151.0,0.00033119,7]
[388321142,1759089044341,-151.0,0.00033119,7]
[388321143,1759089044350,-151.0,0.00033119,7]
[388321144,1759089044359,-151.0,0.00033119,7]
[388321145,1759089044370,-151.0,0.00033119,7]
[388321146,1759089044379,-151.0,0.00033119,7]
[388321147,1759089044388,-151.0,0.00033119,7]
[388321148,1759089044397,-151.0,0.00033119,7]
[388321149,1759089044406,-151.0,0.00033119,7]
[388321150,1759089044415,-151.0,0.00033119,7]
[388321151,1759089044424,-151.0,0.00033119,7]
[388321152,1759089044433,-151.0,0.00033119,7]
[388321153,1759089044442,-151.0,0.00033119,7]
[388321154,1759089044451,-151.0,0.00033119,7]
[388321155,1759089044461,-151.0,0.00033119,7]
[388321156,1759089044470,-151.0,0.00033119,7]
[388321157,1759089044480,-151.0,0.00033119,7]
[388321158,1759089044489,-151.0,0.00033119,7]
[388321159,1759089044499,-151.0,0.00033119,7]
[388321160,1759089044508,-151.0,0.00033119,7]
[388321161,1759089044517,-46.77271931,0.00033119,7]
[388321162,1759089044529,-104.22728069,0.00033119,7]
[388321163,1759089044539,-151.0,0.00033119,7]
[388321164,1759089044548,-128.18271931,0.00033119,7]
[388321165,1759089044563,-22.81728069,0.00033119,7]
[388321166,1759089044572,-151.0,0.00033119,7]
[388321167,1759089044582,-151.0,0.00033119,7]
[388321168,1759089044591,-151.0,0.00033119,7]
[388321169,1759089044601,-151.0,0.00033119,7]
[388321170,1759089044610,-151.0,0.00033119,7]
[388321171,1759089044619,-151.0,0.00033119,7]
[388321172,1759089044628,-151.0,0.00033119,7]
[388321173,1759089044638,-166.0,0.00033119,7]
[388321174,1759089044647,-166.0,0.00033119,7]
[388321175,1759089044656,-189.35579204,0.00033119,7]
[388321176,1759089044665,-233.82138094,0.00033119,7]
[388321177,1759089044674,-151.0,0.00033119,7]
[388321178,1759089044683,-500.0,0.0003315,120]
[388321179,1759089044692,-660.0,0.0003319,2]
[388321180,1759089044702,-151.0,0.00033195,2]
[388321181,1759089044711,-500.0,0.00033195,2]
[388321182,1759089044721,-151.0,0.00033195,2]
[388321183,1759089044729,-500.0,0.00033195,2]
[388321184,1759089044739,-151.0,0.00033195,2]
[388321185,1759089044748,-151.0,0.00033195,2]
[388321186,1759089044757,-151.0,0.000332,16]
[388321187,1759089044766,-219.36305909,0.00033204,2]
[388321188,1759089044776,-160.0,0.00033225,2]
[388321189,1759089044786,-233.82138094,0.00033225,2]
[388321190,1759089044795,-160.0,0.00033225,2]
[388321191,1759089044804,-160.0,0.00033225,2]
[388321192,1759089044813,-189.35579204,0.00033225,2]
[388321193,1759089044823,-160.0,0.00033225,2]
[388321194,1759089044832,-160.0,0.00033225,2]
[388321195,1759089044842,-160.0,0.00033235,2]
[388321196,1759089044851,-150.05622597,0.00033247,2]
[388321197,1759089044860,-500.0,0.00033287,120]
[388321198,1759089044869,-252.02515466,0.00033304,2]
[388321199,1759089044880,-199.0,0.00033424,19]
[388321200,1759089044889,-500.0,0.00033424,120]
[388321201,1759089044899,-171.49282968,0.0003346,2]
[388321202,1759089044908,-151.0,0.00033469,2]
[388321203,1759089044917,-500.0,0.00033469,2]
[388321204,1759089044926,-151.0,0.00033469,2]
[388321205,1759089044935,-535.08753811,0.00033469,2]
[388321206,1759089044945,-151.0,0.00033469,2]
[388321207,1759089044954,-151.0,0.00033543,2]
[388321208,1759089044963,-500.0,0.00033561,120]
[388321209,1759089044973,-979.0,0.00033575,2]
[388321210,1759089044983,-635.0,0.00033575,2]
[388321211,1759089044992,-2161.0,0.00033575,2]
[388321212,1759089045002,-823.0,0.00033576,2]
[388321213,1759089045011,-15805.05879545,0.00033674,2]
[388321214,1759089045023,-877.02000001,0.00033674,2]
[388321215,1759089046546,-150.0,0.00033575,2]
[388321216,1759089046555,-202.97,0.00033674,10]
[388321217,1759089046564,-5843.08397442,0.00033674,2]
[388321231,1759089605978,-296.43717973,0.00025205,2]
[388321232,1759089608922,-203.56282027,0.00025205,2]
[388321233,1759089608945,-447.13878956,0.00025205,2]
[388321234,1759089610832,-52.86121044,0.00025205,2]
[388321235,1759089610856,-384.40526218,0.00025205,2]
[388321236,1759089612604,-115.59473782,0.00025205,2]
[388321237,1759089612625,-102.40526218,0.00025205,2]
[388321238,1759089615999,-203.45255763,0.00025205,2]
[388321239,1759089619969,-194.14218019,0.00025205,2]
[388321240,1759089619990,-9.92513588,0.00025205,2]
[388321241,1759089621715,-286.23654563,0.00025205,2]
[388321242,1759089624618,-160.30752746,0.00025205,2]
[388321243,1759089626107,-43.53079103,0.00025205,2]
[388321244,1759089626129,-256.46920897,0.00025205,2]
[388321245,1759089627001,160.0,0.00025205,2]
[388321246,1759089627918,-243.53079103,0.00025205,2]
[388321247,1759089627940,-37.77297151,0.00025205,2]
[388321248,1759089629860,-154.49509221,0.00025205,2]
[388321249,1759089634292,-184.7570488,0.00025205,2]
[388321250,1759089636430,-122.97488748,0.00025205,2]
[388321251,1759089636471,-87.18991866,0.00025205,2]
[388321256,1759089819348,3377.02511252,0.00025205,2]
[388321257,1759089927290,151.49421473,0.00025154,2]
[388321260,1759090127957,158.0,0.00033969,60]
[388321261,1759090151124,-263.99313125,0.00025205,2]
[388321262,1759090165099,-148.81695009,0.00025205,2]
[388321263,1759090165119,-246.79785503,0.00025205,2]
[388321264,1759090165136,-174.714,0.00026631,2]
[388321265,1759090165155,-981.22957438,0.00027681,2]
[388321266,1759090165175,-300.0,0.00027793,2]
[388321267,1759090165193,-1448.59168266,0.00027794,2]
[388321315,1759090232628,-1200.0,0.00027793,2]
[388321318,1759090232638,-3077.25986764,0.00027794,2]
[388321320,1759090232647,-160.0,0.00027794,2]
[388321322,1759090232656,-300.0,0.00028044,2]
[388321324,1759090232666,-215.0,0.00028044,2]
[388321326,1759090232676,-300.0,0.00028044,2]
[388321328,1759090232686,-300.0,0.00028044,2]
[388321330,1759090232695,-300.0,0.00028044,2]
[388321332,1759090232705,-666.0,0.00028045,2]
[388321334,1759090232714,-193.562875,0.00028129,60]
[388321336,1759090232723,-193.4689111,0.00028735,2]
[388321338,1759090232732,-280.0,0.00029838,2]
[388321340,1759090232741,-1211.0,0.00030154,2]
[388321342,1759090232751,-420.0,0.00030286,2]
[388321344,1759090232761,-258.0,0.00030286,2]
[388321347,1759090232770,-14603.55103942,0.000303,2]
[388321350,1759090232782,-2192.59034311,0.000303,2]
[388321353,1759090232791,-500.0,0.000303,2]
[388321356,1759090232805,-500.0,0.000303,2]
[388321359,1759090232814,-500.0,0.000303,2]
[388321361,1759090232823,-648.56590886,0.000303,2]
[388321363,1759090232833,-1779.95456606,0.00030728,2]
[388321364,1759090232842,-322.914822,0.00031472,2]
[388321365,1759090232851,-6267.9631192,0.00031475,2]
[388321366,1759090232860,-4860.35089444,0.00031618,2]
[388321367,1759090232889,-1182.13459353,0.00031618,2]
[388321368,1759090232898,-168.0,0.00031735,2]
[388321369,1759090232906,-199.0,0.00031975,14]
[388321370,1759090232915,-168.0,0.00032079,2]
[388321371,1759090232924,-168.0,0.00032082,2]
[388321372,1759090232933,-1804.09020082,0.00032186,2]
[388321373,1759090232942,-199.0,0.00032523,15]
[388321374,1759090232951,-168.0,0.00032591,2]
[388321375,1759090232960,-2107.57889828,0.00032606,2]
[388321376,1759090232969,-587.0,0.00032707,2]
[388321377,1759090232978,-168.0,0.00032709,2]
[388321378,1759090232987,-979.0,0.00032781,2]
[388321379,1759090232995,-635.0,0.00032781,2]
[388321380,1759090233005,-2161.0,0.00032781,2]
[388321381,1759090233014,-410.0,0.00032781,2]
[388321382,1759090233023,-425.659,0.00032781,2]
[388321383,1759090233032,-3567.2449215,0.00032783,2]
[388321384,1759090233041,-500.0,0.00032876,120]
[388321385,1759090233050,-1033.429771,0.00032877,2]
[388321386,1759090233059,-377.63507834,0.00033,60]
[388321387,1759090233067,-201.98800125,0.00033011,7]
[388321388,1759090233076,-578.72207258,0.00033011,7]
[388321389,1759090233085,-462.39514848,0.00033011,7]
[388321390,1759090233094,-578.72207258,0.00033011,7]
[388321391,1759090233103,-578.72207258,0.00033011,7]
[388321392,1759090233112,-578.72207258,0.00033011,7]
[388321393,1759090233121,-578.72207258,0.00033011,7]
[388321394,1759090233131,-578.72207258,0.00033011,7]